bitfinex-derivatives/quotes_ETHF0:USTF0_20250709
["timestamp","ask_amount","ask_price","bid_price","bid_amount"]
[1752062938974,0.75911,2634.3,2634.2,3.2078]
[1752062939275,0.75911,2634.3,2633.4,5.65790853]
[1752062939276,0.75934,2633.5,2633.4,4.46739074]
[1752062939774,0.75937,2633.4,2633.3,4.48234074]
[1752062940475,3.16156867,2633.4,2633.3,4.48234074]
[1752062940677,3.16156867,2633.4,2633.3,0.01495]
[1752062940975,1.89863,2633.2,2632.7,4.46739074]
[1752062941175,0.75957,2632.7,2632.6,57.27239074]
[1752062941773,6.60671455,2634.2,2632.6,58.805]
[1752062941979,0.75924,2633.9,2633.5,2.11315284]
[1752062942179,0.75924,2633.9,2633.7,0.75928]
[1752062942380,0.75924,2633.9,2633.6,0.7593]
[1752062942774,4.2211,2634.1,2633.5,3.04981]
[1752062942974,0.75927,2633.8,2633.6,0.75929]
[1752062943279,0.75922,2634.0,2633.8,0.75924]
[1752062943976,4.4998907,2634.2,2633.9,5.32095284]
[1752062944173,3.40832392,2634.0,2633.9,5.32095284]
[1752062944379,4.16744392,2634.3,2634.2,0.75914]
[1752062944673,3.40832392,2634.3,2634.2,0.75914]
[1752062944877,2.75e-06,2634.5,2634.3,0.75911]
[1752062944878,3.40832392,2634.4,2634.3,0.75911]
[1752062945177,0.75907275,2634.5,2634.3,0.75911]
[1752062945378,2.14192657,2634.4,2634.2,3.2078]
[1752062945674,1.38283657,2634.3,2634.2,0.75914]
[1752062945981,1.38283657,2634.3,2634.2,3.96694]
[1752062946184,1.38283657,2634.3,2634.2,5.34174]
[1752062947884,2.75e-06,2634.5,2634.4,0.75908]
[1752062948281,1.38286436,2634.5,2634.4,0.75908]
[1752062949582,2.75e-06,2634.5,2634.4,0.75908]
[1752062951883,0.75905275,2634.5,2634.4,0.75908]
[1752062952077,2.75e-06,2634.5,2634.4,0.75908]
[1752062955588,0.75905275,2634.5,2634.4,0.75908]
[1752062955789,2.75e-06,2634.5,2634.4,0.75908]
[1752062956388,0.75905275,2634.5,2634.4,0.75908]
[1752062956588,2.75e-06,2634.5,2634.4,0.75908]
[1752062956980,0.75905275,2634.5,2634.4,0.75908]
[1752062957184,2.75e-06,2634.5,2634.4,0.75908]
[1752062957485,0.75905275,2634.5,2634.4,0.75908]
[1752062958784,2.75e-06,2634.5,2634.4,0.75908]
[1752062959890,0.75905275,2634.5,2634.4,0.75908]
[1752062961893,2.75e-06,2634.5,2634.4,0.75908]
[1752062962592,0.75905275,2634.5,2634.4,0.75908]
[1752062965297,0.75905275,2634.5,2634.4,2.04208]
[1752062966796,0.75905275,2634.5,2634.4,0.75908]
[1752062971106,2.15734505,2634.5,2634.4,0.75908]
[1752062972202,0.75911,2634.3,2634.2,3.2078]
[1752062972507,0.75914,2634.2,2634.1,0.7648506]
[1752062973006,2.1574323,2634.2,2634.1,0.7648506]
[1752062973505,1.73861,2634.4,2634.3,0.75911]
[1752062973705,3.13793246,2634.4,2634.3,0.75911]
[1752062974704,2.37882246,2634.4,2634.3,0.75911]
[1752062975302,1.39932246,2634.4,2634.3,0.75911]
[1752062975507,1.39932246,2634.4,2634.3,2.08031]
[1752062975708,0.75905275,2634.5,2634.4,0.75908]
[1752062976008,2.16038063,2634.5,2634.4,0.75908]
[1752062977809,1.40133063,2634.5,2634.4,0.75908]
[1752062978006,0.75911,2634.3,2634.2,3.2078]
[1752062978207,0.75911,2634.3,2634.2,3.96694]
[1752062978508,2.16043788,2634.3,2634.2,3.96694]
[1752062978703,3.17383788,2634.3,2634.2,3.96694]
[1752062978911,0.75914,2634.2,2634.1,0.0057006]
[1752062979109,2.16046788,2634.2,2634.1,0.0057006]
[1752062979803,2.16046788,2634.2,2634.1,0.7648706]
[1752062980001,1.40132788,2634.2,2634.1,0.7648706]
[1752062981508,1.77252,2634.3,2634.2,0.75914]
[1752062981809,3.17491122,2634.3,2634.2,0.75914]
[1752062983210,1.40239122,2634.3,2634.2,5.08312138]
[1752062983417,1.40239122,2634.3,2634.2,6.02912138]
[1752062983715,2.16150122,2634.3,2634.2,6.02912138]
[1752062984811,1.40239122,2634.3,2634.2,6.02912138]
[1752062985814,1.40239122,2634.3,2634.2,7.36662138]
[1752062986317,2.16150122,2634.3,2634.2,7.36662138]
[1752062986517,1.40239122,2634.3,2634.2,7.36662138]
[1752062987018,1.40239122,2634.3,2634.2,6.02912138]
[1752062987412,2.16150122,2634.3,2634.2,6.02912138]
[1752062987613,2.16150122,2634.3,2634.2,4.91294]
[1752062987813,1.40239122,2634.3,2634.2,4.91294]
[1752062988120,2.16150122,2634.3,2634.2,3.96694]
[1752062988413,2.16143272,2634.3,2634.2,3.2078]
[1752062988620,2.16143272,2634.3,2634.2,0.75914]
[1752062994119,2.90957275,2634.5,2634.2,0.75914]
[1752062994120,3.41414427,2635.1,2635.0,0.75891]
[1752062994418,5.85741975,2635.7,2635.0,3.2078]
[1752062994419,4.4998907,2635.5,2635.0,3.2078]
[1752062994622,4.4998907,2635.5,2634.9,1.11618138]
[1752062994623,0.18531997,2635.7,2635.4,2.23236276]
[1752062994821,7.18127594,2636.1,2636.0,0.75862]
[1752062995118,1.11618138,2636.5,2636.0,3.50601449]
[1752062995324,0.75848,2636.5,2636.4,3.2078]
[1752062995515,59.3113,2636.8,2636.0,3.2078]
[1752062995516,0.75858,2636.2,2636.0,3.2078]
[1752062995716,57.544,2636.1,2636.0,3.2078]
[1752062996317,1.2965,2636.4,2636.0,4.32398138]
[1752062996527,1.2965,2636.4,2636.3,3.2078]
[1752062996724,1.2965,2636.4,2635.5,2.91779]
[1752062996725,0.75859,2636.2,2636.0,3.2078]
[1752062997026,1.2965,2636.4,2635.8,2.25812141]
[1752062997027,0.75866,2635.9,2635.8,2.25812141]
[1752062997221,0.75871,2635.7,2635.6,2.25812141]
[1752062997425,2.86725481,2635.7,2635.6,1.68386012]
[1752062997617,43.2109,2635.8,2635.4,4.89166012]
[1752062997618,2.4109,2635.8,2635.4,4.89166012]
[1752062997921,1.3551,2635.6,2635.4,3.21348947]
[1752062998124,0.75876,2635.5,2635.4,3.21348947]
[1752062998330,0.75876,2635.5,2635.2,1.68386012]
[1752062998331,5.31634481,2635.5,2635.2,1.68386012]
[1752062998518,2.11391,2635.4,2635.1,1.68386012]
[1752062998722,58.41582,2635.3,2635.0,2.25812141]
[1752062998928,1.3551,2635.2,2635.0,2.25812141]
[1752062999125,0.75888,2635.1,2635.0,1.68310653]
[1752062999534,2.11398,2635.1,2635.0,1.68310653]
[1752062999828,61.0281,2635.1,2634.7,1.68310653]
[1752063000029,56.0281,2635.1,2634.6,3.2078]
[1752063000218,57.657,2635.3,2634.6,3.2078]
[1752063000219,3.2078,2635.5,2635.1,0.75888]
[1752063000518,6.506,2636.3,2635.4,5.31634481]
[1752063000724,2.04588,2636.2,2635.7,3.96651]
[1752063000923,1.2873,2636.2,2635.7,3.96651]
[1752063001127,57.546,2636.5,2635.7,3.96651]
[1752063001428,57.546,2636.5,2635.7,5.4773]
[1752063001629,1.74533,2636.4,2636.2,3.2078]
[1752063001826,2.2741,2636.4,2636.2,3.2078]
[1752063002327,0.75853,2636.3,2636.2,3.2078]
[1752063002528,2.04583,2636.3,2636.2,3.2078]
[1752063002727,1.2873,2636.3,2636.2,3.2078]
[1752063003029,0.75832,2637.1,2636.6,0.75844]
[1752063003225,31.86109,2637.2,2636.7,3.96622]
[1752063003528,1.367,2637.0,2636.8,0.75839]
[1752063003823,1.367,2637.0,2636.8,0.75838]
[1752063004024,0.9868,2637.2,2636.9,0.75836]
[1752063004225,1.367,2637.5,2637.0,3.2078]
[1752063004421,1.367,2637.5,2637.4,3.2078]
[1752063004932,2.12519,2637.5,2637.4,3.2078]
[1752063005132,1.367,2637.5,2637.4,3.2078]
[1752063006230,3.2078,2638.3,2637.4,10.31634481]
[1752063006429,3.39311997,2639.0,2637.8,3.2078]
[1752063006625,3.39311997,2639.0,2638.6,3.2078]
[1752063006626,0.18531997,2639.0,2638.6,3.2078]
[1752063006831,1.3296,2638.9,2638.7,3.2078]
[1752063007326,0.75782,2638.8,2638.4,3.2078]
[1752063007525,2.08747,2638.7,2638.4,3.2078]
[1752063007726,1.3296,2638.7,2638.4,3.2078]
[1752063008229,0.75781,2638.9,2638.5,2.10854481]
[1752063008530,0.18531997,2639.0,2638.5,3.2078]
[1752063008531,0.75787,2638.6,2638.5,3.2078]
[1752063008730,58.5556,2638.8,2638.2,3.2078]
[1752063008930,0.75796,2638.3,2638.2,3.2078]
[1752063009324,4.00332481,2638.5,2637.9,3.2078]
[1752063009528,0.75805,2638.0,2637.9,3.2078]
[1752063010133,0.75824,2637.4,2637.2,2.10854481]
[1752063010429,0.75822,2637.4,2637.3,3.2078]
[1752063011231,0.75821,2637.5,2637.3,3.2078]
[1752063011432,0.75822,2637.4,2637.3,3.2078]
[1752063012032,0.75831,2637.1,2637.0,3.2078]
[1752063013129,6.34779,2637.4,2636.8,3.2078]
[1752063013333,0.75836,2636.9,2636.8,3.2078]
[1752063014036,1.89573,2637.2,2636.6,0.98498947]
[1752063014336,0.75842,2636.7,2636.6,0.00568947]
[1752063016541,0.7583,2637.2,2636.6,7.34912605]
[1752063016732,3.2078,2637.6,2637.0,3.96613]
[1752063016733,0.75826,2637.3,2637.0,3.96613]
[1752063017036,0.75831,2637.1,2637.0,3.2078]
[1752063017542,1.2459,2637.4,2637.0,3.96613]
[1752063017837,0.75831,2637.1,2637.0,3.2078]
[1752063018234,0.75833,2637.1,2636.9,0.75835]
[1752063018538,1.2459,2637.4,2636.9,3.2078]
[1752063018743,0.75828,2637.3,2637.1,0.7583]
[1752063018942,2.00414,2637.4,2636.9,5.10371]
[1752063019143,3.2078,2637.6,2637.0,1.89586]
[1752063019441,3.2078,2637.6,2637.4,0.7582]
[1752063019640,0.7582,2637.5,2637.4,0.7582]
[1752063020033,3.96599,2637.6,2637.4,0.7582]
[1752063020240,3.2078,2637.6,2637.5,0.7582]
[1752063020438,1.2875,2637.9,2637.8,0.75811]
[1752063020637,0.9946,2638.4,2638.0,0.75803]
[1752063020938,0.75803,2638.1,2638.0,0.75805]
[1752063021139,1.2875,2638.3,2637.8,3.2078]
[1752063021339,2.04547,2638.3,2638.1,0.758]
[1752063021541,3.2078,2638.5,2638.2,0.75799]
[1752063021743,0.75794,2638.4,2638.2,0.75799]
[1752063021937,3.2078,2638.5,2638.2,0.75799]
[1752063022239,0.75799,2638.3,2638.2,0.758]
[1752063022437,0.758,2638.2,2637.9,1.2592]
[1752063022636,4.4676,2638.5,2638.0,1.11356365]
[1752063022834,0.75802,2638.2,2638.1,0.35551365]
[1752063023037,0.75802,2638.2,2638.1,1.11354365]
[1752063023338,0.758,2638.2,2638.1,0.35551365]
[1752063023537,0.75799,2638.3,2638.1,0.35551365]
[1752063023737,3.2078,2638.8,2638.4,0.75794]
[1752063023938,0.18531997,2639.0,2638.9,0.7578]
[1752063024338,0.18531997,2639.0,2638.9,1.11318478]
[1752063025542,0.75763,2639.5,2639.3,0.75766]
[1752063025743,0.75763,2639.5,2639.4,1.11303478]
[1752063025935,0.75763,2639.5,2639.4,0.35538478]
[1752063026145,56.782066,2640.6,2639.4,5.35538478]
[1752063026444,56.782066,2640.6,2640.0,3.2078]
[1752063026445,0.75745,2640.1,2640.0,3.2078]
[1752063026741,0.75745,2640.1,2640.0,3.56318478]
[1752063026946,0.75762,2639.5,2639.4,3.2078]
[1752063027141,0.75762,2639.5,2639.4,3.56308397]
[1752063028145,0.75762,2639.5,2639.4,3.2078]
[1752063028843,0.75771,2639.2,2639.1,3.2078]
[1752063029238,0.75771,2639.2,2639.1,4.9188446]
[1752063029639,0.75771,2639.2,2639.1,3.2078]
[1752063029945,0.75782,2638.9,2638.8,3.2078]
[1752063030142,0.75782,2638.9,2638.8,4.91826879]
[1752063031041,1.89421,2639.3,2638.8,4.91826879]
[1752063031338,1.89392,2639.8,2638.8,3.2078]
[1752063031544,0.7576,2639.6,2639.5,3.2078]
[1752063031842,0.7577,2639.3,2639.1,0.75773]
[1752063032043,0.7577,2639.3,2639.2,3.2078]
[1752063033945,0.7577,2639.3,2639.2,3.96551]
[1752063034245,0.75767,2639.4,2639.2,3.96549]
[1752063034447,0.75768,2639.3,2639.2,3.2078]
[1752063034643,0.75767,2639.4,2639.2,3.9655]
[1752063034846,1.3153,2639.5,2639.3,0.75768]
[1752063035045,1.0157,2639.7,2639.4,0.75765]
[1752063035243,0.75757,2639.7,2639.6,0.7576]
[1752063035638,5.65123562,2642.0,2639.6,42.87875]
[1752063035840,0.18531997,2642.4,2641.6,3.2078]
[1752063036044,0.18531997,2642.4,2642.1,3.2078]
[1752063036244,0.75685,2642.2,2642.1,3.2078]
[1752063036644,0.75685,2642.2,2641.7,3.2078]
[1752063036645,5.0,2642.2,2641.7,3.2078]
[1752063036850,1.344,2642.1,2641.4,3.2078]
[1752063037242,1.344,2642.1,2641.5,3.2078]
[1752063037650,1.344,2642.1,2641.9,3.96471]
[1752063037845,1.344,2642.1,2641.9,3.2078]
[1752063038247,0.18531997,2642.4,2641.9,3.2078]
[1752063038449,0.18531997,2642.4,2642.2,3.2078]
[1752063038650,1.344,2642.3,2642.2,3.2078]
[1752063038846,2.10083,2642.3,2641.8,3.2078]
[1752063039047,1.344,2642.3,2641.8,3.2078]
[1752063039247,1.344,2642.3,2641.5,0.00567752]
[1752063039248,4.5518,2642.3,2641.5,0.00567752]
[1752063039454,0.75702,2641.6,2641.5,0.00567752]
[1752063040346,2.4324,2641.8,2641.5,0.00567752]
[1752063040548,3.2078,2643.2,2641.7,3.2078]
[1752063040852,2.1323,2643.1,2642.3,3.96462]
[1752063041043,2.1323,2643.1,2642.3,3.7107992]
[1752063041044,1.3757,2643.1,2642.3,3.7107992]
[1752063041245,0.75657,2643.2,2642.7,3.2078]
[1752063041552,0.75664,2643.0,2642.9,3.2078]
[1752063041850,0.75673,2642.6,2642.5,3.2078]
[1752063042358,3.2078,2643.2,2642.5,3.2078]
[1752063042559,1.3757,2643.3,2642.8,3.2078]
[1752063042950,1.3757,2643.3,2642.5,3.2078]
[1752063043252,0.75665,2642.9,2642.4,1.294]
[1752063043450,0.75674,2642.6,2642.5,3.70932044]
[1752063043654,3.2078,2643.1,2642.5,3.70930621]
[1752063043962,0.75674,2642.6,2642.5,3.2078]
[1752063044253,0.75674,2642.6,2642.5,3.70930915]
[1752063044459,0.75674,2642.6,2641.1,1.89289]
[1752063044460,0.75685,2642.2,2642.1,3.2078]
[1752063044654,0.75685,2642.2,2642.1,0.50140505]
[1752063044851,1.3765,2642.5,2642.1,0.50140505]
[1752063045050,1.3765,2642.5,2642.2,0.50140505]
[1752063045051,0.75685,2642.3,2642.2,0.50140505]
[1752063045255,0.75691,2642.0,2641.9,3.2078]
[1752063045452,1.3765,2642.5,2641.9,8.57510101]
[1752063045453,0.75681,2642.4,2641.9,8.57510101]
[1752063045657,0.75679,2642.4,2642.3,3.2078]
[1752063045860,0.75695,2641.9,2641.6,3.2078]
[1752063046059,1.89213,2642.2,2641.7,2.26735885]
[1752063046254,0.75694,2641.9,2641.8,0.50139351]
[1752063046455,0.75699,2641.7,2641.6,3.2078]
[1752063046660,0.75699,2641.7,2641.6,3.70932652]
[1752063046862,0.75699,2641.7,2641.6,3.2078]
[1752063047158,0.75699,2641.7,2641.6,3.7093937]
[1752063047362,0.75699,2641.7,2641.6,0.5015937]
[1752063047562,0.75708,2641.4,2641.3,3.2078]
[1752063047762,0.5109233,2641.4,2641.3,5.84683243]
[1752063048161,0.5109233,2641.4,2641.3,4.06444375]
[1752063048356,0.75708,2641.4,2641.3,4.06444375]
[1752063048556,1.0355,2642.0,2641.3,6.40788033]
[1752063048758,1.79242,2642.0,2641.7,3.96479]
[1752063049062,0.75692,2642.0,2641.8,0.85664375]
[1752063049262,0.75692,2642.0,2641.9,0.85657142]
[1752063049460,2.1023,2642.1,2641.9,0.85657142]
[1752063049764,1.3454,2642.1,2642.0,3.70941005]
[1752063050065,2.10228,2642.1,2642.0,3.70941005]
[1752063050260,1.3454,2642.1,2642.0,3.70941005]
[1752063050567,3.2078,2642.8,2642.0,3.70941005]
[1752063050568,3.96441,2643.1,2642.0,10.49408705]
[1752063050757,1.3454,2643.0,2642.3,3.2078]
[1752063050960,1.3454,2643.0,2642.4,0.50161005]
[1752063051162,1.3454,2643.0,2642.3,3.2078]
[1752063051163,0.9701,2642.9,2642.5,0.52349043]
[1752063051466,1.3454,2642.8,2642.6,0.52349043]
[1752063051768,2.10208,2642.8,2642.7,0.52349043]
[1752063052066,1.3454,2642.8,2642.7,0.52349043]
[1752063052269,2.10208,2642.8,2642.7,0.52349043]
[1752063052461,1.3454,2642.8,2642.7,0.52349043]
[1752063052661,2.10208,2642.8,2642.7,0.52349043]
[1752063054564,42.90208,2642.8,2642.7,0.52349043]
[1752063055064,42.90208,2642.8,2642.7,4.3e-07]
[1752063055268,47.90208,2642.8,2642.7,4.3e-07]
[1752063055465,51.10988,2642.8,2642.7,4.3e-07]
[1752063056172,53.45331658,2642.8,2642.7,4.3e-07]
[1752063056563,0.75687,2642.2,2642.0,3.2078]
[1752063056766,1.3382,2642.1,2642.0,3.2078]
[1752063057162,2.09508,2642.1,2642.0,3.2078]
[1752063057367,1.3382,2642.1,2641.7,3.2078]
[1752063057565,0.75695,2641.9,2641.7,3.2078]
[1752063058069,0.75692,2642.0,2641.7,3.2078]
[1752063058673,0.75694,2641.9,2641.7,3.2078]
[1752063059066,0.75692,2642.0,2641.7,3.2078]
[1752063059270,1.3382,2642.1,2641.7,3.2078]
[1752063059570,0.75692,2642.0,2641.7,3.2078]
[1752063059973,56.601,2642.8,2641.9,1.89235]
[1752063060164,0.75672,2642.7,2642.4,3.2078]
[1752063060366,0.75674,2642.6,2642.4,3.2078]
[1752063060562,1.339,2642.7,2642.5,0.75675]
[1752063060766,56.601,2642.8,2642.4,3.2078]
[1752063060964,0.963,2643.1,2642.7,3.2078]
[1752063061168,0.963,2643.1,2642.9,0.75663]
[1752063061364,0.963,2643.1,2643.0,3.2078]
[1752063061674,2.3393,2643.1,2643.0,3.2078]
[1752063061875,3.09589,2643.1,2643.0,3.2078]
[1752063062173,2.3393,2643.1,2643.0,3.2078]
[1752063062368,64.0693,2643.1,2642.5,3.2078]
[1752063062572,0.75685,2642.3,2641.7,3.2078]
[1752063062874,0.75694,2641.9,2641.8,1.66497451]
[1752063063073,0.75696,2641.8,2641.7,3.2078]
[1752063063376,59.139,2642.2,2641.7,4.87871931]
[1752063063574,0.75696,2641.9,2641.7,3.21347752]
[1752063063971,0.75695,2641.9,2641.7,3.21347752]
[1752063064169,59.89587,2642.2,2641.9,0.75693]
[1752063064369,59.139,2642.2,2641.7,4.53067752]
[1752063064576,0.75696,2641.8,2641.7,3.21347752]
[1752063064776,0.75696,2641.8,2641.7,0.36067909]
[1752063064972,0.75696,2641.8,2641.7,0.00567752]
[1752063065372,57.46196,2641.8,2641.7,0.00567752]
[1752063066079,62.46196,2641.8,2641.7,0.00567752]
[1752063066271,57.46196,2641.8,2641.7,0.00567752]
[1752063066977,60.66976,2641.8,2641.7,0.00567752]
[1752063067178,60.66976,2641.8,2641.7,0.50564426]
[1752063067474,65.66976,2641.8,2641.7,0.50564426]
[1752063067678,0.75717,2641.1,2641.0,3.2078]
[1752063067970,0.75717,2641.1,2641.0,4.86276522]
[1752063068174,0.75716,2641.1,2641.0,4.86276522]
[1752063069472,1.3442,2641.2,2640.8,1.65830459]
[1752063069775,0.75725,2640.8,2640.7,4.86610459]
[1752063070381,0.75725,2640.8,2640.7,3.2078]
[1752063071074,2.01515,2640.8,2640.7,3.2078]
[1752063071275,0.75734,2640.5,2640.4,1.65830459]
[1752063071475,0.75734,2640.5,2640.2,3.01553141]
[1752063071476,0.75739,2640.3,2640.2,1.65830459]
[1752063071682,0.75739,2640.3,2640.0,5.46592141]
[1752063071683,0.75739,2640.3,2640.0,4.86610459]
[1752063071980,56.599,2640.2,2640.0,5.62356459]
[1752063072182,57.35642,2640.2,2640.0,4.86610459]
[1752063072382,56.599,2640.2,2640.0,3.2078]
[1752063072571,57.35644,2640.2,2640.0,3.96528]
[1752063072775,57.7458,2640.9,2640.0,3.96528]
[1752063072776,3.2078,2641.5,2640.0,10.46592141]
[1752063073083,1.89267,2641.5,2640.9,3.2078]
[1752063073381,0.75711,2641.3,2641.2,3.2078]
[1752063073576,28.345,2641.5,2641.2,3.2078]
[1752063073774,2.10221,2641.3,2641.2,3.2078]
[1752063074381,0.75706,2641.5,2641.3,0.75709]
[1752063074682,28.328,2641.5,2641.2,3.96493]
[1752063075084,29.08506,2641.5,2641.3,0.7571]
[1752063075285,28.328,2641.5,2641.2,3.2078]
[1752063075586,1.3451,2641.7,2641.4,0.75707]
[1752063075778,29.06303,2641.6,2641.3,0.75709]
[1752063076085,0.75706,2641.5,2641.2,3.96492]
[1752063076280,0.75706,2641.5,2641.3,0.75711]
[1752063077083,0.75708,2641.4,2641.2,3.2078]
[1752063077377,1.89257,2641.6,2640.9,3.2078]
[1752063077582,1.3166,2641.3,2640.9,3.2078]
[1752063077781,0.75718,2641.1,2640.9,3.96502]
[1752063077983,0.75716,2641.2,2640.9,3.96502]
[1752063078282,0.75717,2641.1,2640.9,3.96502]
[1752063078682,0.75716,2641.2,2641.0,0.75719]
[1752063078979,0.75707,2641.5,2641.0,2.34343658]
[1752063079284,0.75714,2641.2,2641.1,3.2078]
[1752063079883,0.75713,2641.3,2641.1,3.2078]
[1752063080082,0.75714,2641.2,2641.1,3.2078]
[1752063082284,28.25,2641.6,2641.1,3.2078]
[1752063082486,0.75705,2641.5,2641.4,3.2078]
[1752063084282,4.22985,2641.8,2641.4,3.2078]
[1752063084283,2.3374,2641.8,2641.4,3.2078]
[1752063084483,1.80906,2641.8,2641.7,3.2078]
[1752063085384,1.89273,2641.4,2641.1,3.21347752]
[1752063085584,0.75714,2641.2,2641.1,3.21347752]
[1752063085785,0.75712,2641.3,2641.1,4.84076598]
[1752063085984,0.75714,2641.2,2641.1,3.21347752]
[1752063086182,0.75713,2641.3,2641.1,5.59786848]
[1752063086384,0.75714,2641.2,2641.1,3.97064752]
[1752063086583,0.75713,2641.3,2641.1,5.59794578]
[1752063086882,0.75714,2641.2,2641.1,3.21347752]
[1752063087082,0.75714,2641.2,2641.1,4.84109143]
[1752063088182,0.75714,2641.2,2641.1,1.63329143]
[1752063088386,0.75714,2641.2,2641.1,0.00567752]
[1752063088581,0.75722,2640.9,2640.8,3.2078]
[1752063088785,0.75722,2640.9,2640.8,1.62934095]
[1752063089089,0.75731,2640.6,2640.5,3.2078]
[1752063089290,0.75731,2640.6,2640.5,4.83769845]
[1752063089788,0.75731,2640.6,2640.5,3.2078]
[1752063090288,0.75731,2640.6,2640.5,4.83788017]
[1752063090484,0.75731,2640.6,2640.5,3.2078]
[1752063090790,0.75745,2640.1,2640.0,4.87827597]
[1752063090986,0.75745,2640.1,2640.0,3.30080055]
[1752063091187,0.75745,2640.1,2640.0,1.63032458]
[1752063091989,3.96525,2640.1,2640.0,1.63032458]
[1752063092391,0.75757,2639.7,2639.6,1.67047597]
[1752063092591,0.75757,2639.7,2639.6,3.30049641]
[1752063092890,1.9033,2640.0,2639.6,3.30049641]
[1752063092891,0.75756,2639.8,2639.6,1.63002044]
[1752063093090,1.89349,2640.3,2639.6,1.63002044]
[1752063093091,0.00567752,2639.9,2639.7,4.83782044]
[1752063093292,0.00567752,2639.9,2639.8,1.63002044]
[1752063093687,0.76318752,2639.9,2639.8,1.63002044]
[1752063094395,0.00567752,2639.9,2639.4,4.87827597]
[1752063094597,1.38986,2639.8,2639.5,3.30051175]
[1752063094889,0.75757,2639.7,2639.6,1.63003578]
[1752063095287,2.06547,2639.7,2639.6,1.63003578]
[1752063097197,0.75765,2639.4,2639.3,1.67047597]
[1752063097400,0.75765,2639.4,2639.3,1.62485534]
[1752063097699,0.75765,2639.4,2639.3,3.29533131]
[1752063098397,0.75765,2639.4,2639.3,1.62485534]
[1752063098801,3.2078,2639.5,2639.3,1.62485534]
[1752063099000,0.00567752,2639.9,2639.4,5.63876789]
[1752063099195,0.00567752,2639.9,2639.8,6.30877658]
[1752063099497,0.00567752,2639.9,2639.8,7.93363192]
[1752063099697,0.00567752,2639.9,2639.8,7.17609192]
[1752063099892,0.00567752,2639.9,2639.8,3.2078]
[1752063101293,0.76318752,2639.9,2639.8,3.2078]
[1752063101501,0.00567752,2639.9,2639.5,3.2078]
[1752063101702,0.00567752,2639.9,2639.6,2.3804703]
[1752063102002,0.00567752,2639.9,2639.6,0.75759]
[1752063102203,3.21347752,2639.9,2639.4,1.67418563]
[1752063102502,0.75757,2639.7,2639.5,4.83067804]
[1752063102694,0.75757,2639.7,2639.5,3.2078]
[1752063102898,0.75758,2639.7,2639.5,3.2078]
[1752063103099,0.00567752,2639.9,2639.6,3.10101658]
[1752063103299,0.00567752,2639.9,2639.8,3.2078]
[1752063104109,0.76318752,2639.9,2639.8,3.2078]
[1752063104309,0.75757,2639.7,2639.5,3.2078]
[1752063105007,0.75755,2639.8,2639.5,3.2078]
[1752063105407,0.75755,2639.8,2639.6,2.34343658]
[1752063105408,0.75754,2639.8,2639.6,2.34343658]
[1752063105610,0.75754,2639.8,2639.6,3.59203658]
[1752063105910,0.76320752,2639.9,2639.6,4.34962658]
[1752063106110,0.00567752,2639.9,2639.8,3.2078]
[1752063106309,0.76318752,2639.9,2639.8,3.2078]
[1752063106512,0.76318752,2639.9,2639.8,4.83043978]
[1752063106709,0.00567752,2639.9,2639.8,4.83043978]
[1752063106910,0.76318752,2639.9,2639.8,4.83043978]
[1752063107308,0.76318752,2639.9,2639.8,4.83036344]
[1752063107505,0.00567752,2639.9,2639.8,4.83036344]
[1752063107908,0.76318752,2639.9,2639.8,4.83036344]
[1752063108409,0.76318752,2639.9,2639.8,10.58790344]
[1752063108410,0.00567752,2639.9,2639.8,10.58790344]
[1752063108604,5.65123562,2641.9,2641.1,3.2078]
[1752063108806,5.65123562,2642.7,2641.8,3.2078]
[1752063109012,1.2834,2642.6,2642.1,3.2078]
[1752063109210,1.2834,2642.6,2641.6,3.66013658]
[1752063109211,0.75676,2642.5,2642.4,3.2078]
[1752063110117,3.2078,2642.9,2642.5,0.75675]
[1752063110306,6.40786562,2643.0,2642.7,3.2078]
[1752063110615,1.2587,2643.0,2642.7,3.2078]
[1752063110816,2.01532,2643.0,2642.7,3.2078]
[1752063111011,2.01534,2643.0,2642.7,3.2078]
[1752063111208,1.2587,2643.0,2642.7,3.2078]
[1752063111414,0.75665,2642.9,2642.7,3.2078]
[1752063111615,1.2587,2642.8,2642.7,3.2078]
[1752063112717,2.01538,2642.8,2642.7,3.2078]
[1752063113015,0.75671,2642.7,2642.4,3.2078]
[1752063113214,2.06874,2642.6,2642.4,3.2078]
[1752063113616,1.312,2642.6,2642.4,3.2078]
[1752063113821,2.06875,2642.6,2642.4,3.2078]
[1752063114023,1.312,2642.6,2642.4,3.2078]
[1752063114216,2.06875,2642.6,2642.4,3.2078]
[1752063114622,0.75676,2642.5,2642.4,3.2078]
[1752063114817,2.06876,2642.5,2642.4,3.2078]
[1752063115321,0.75685,2642.2,2642.1,3.2078]
[1752063115522,56.186,2642.2,2641.7,3.2078]
[1752063115822,1.306,2642.1,2641.8,1.68920552]
[1752063116126,0.75691,2642.0,2641.9,1.68920552]
[1752063116515,0.75694,2641.9,2641.7,3.2078]
[1752063116725,2.06296,2641.8,2641.7,3.2078]
[1752063116918,2.06296,2641.8,2641.7,4.89987224]
[1752063117124,1.89103,2643.8,2641.7,10.89987224]
[1752063117316,0.75649,2643.5,2643.2,3.2078]
[1752063117520,0.75652,2643.4,2643.2,3.2078]
[1752063117721,0.75648,2643.5,2643.2,3.2078]
[1752063118128,0.75652,2643.4,2643.2,3.2078]
[1752063118425,0.75653,2643.4,2643.2,3.2078]
[1752063118626,0.75652,2643.4,2643.2,3.2078]
[1752063119015,0.75652,2643.4,2642.7,3.70563658]
[1752063119321,1.89181,2642.7,2642.0,3.2078]
[1752063119528,0.75684,2642.3,2641.7,3.2078]
[1752063119728,0.75691,2642.0,2641.7,3.2078]
[1752063120122,5.0997,2642.5,2641.7,3.2078]
[1752063120323,1.89208,2642.3,2641.7,3.2078]
[1752063120526,0.75695,2641.8,2641.7,3.2078]
[1752063120723,3.2078,2642.5,2641.7,65.07923658]
[1752063120923,1.89132,2643.3,2642.5,2.34343658]